Cogmind - Beta 13 @@@ ROGUE MODE // 2024.04.05 @ 00:42:28 Player: SovietPaperclip Result: Destroyed by Y-45 Defender with Heavy Assault Rifle Performance ------------- Evolutions (0) 0 Regions Visited (4) 800 Robots Destroyed (30) 150 Value Destroyed (846) 846 Prototype IDs (14) 280 Alien Tech Used (0) 0 Bonus (0) 0 TOTAL SCORE: 2076 Bonus ------- None Cogmind --------- Core Integrity 0/250 Matter 248/300 Energy 100/100 System Corruption 0% Temperature Warm (183) Movement Treading (260) Ox1 Location -8/Recycling Parts ------- > --- POWER (1) -------- (None) > --- PROPULSION (2) --- Spiked Treads > --- UTILITY (2) ------ Large Storage Unit Makeshift Light Armor Plating > --- WEAPON (2) ------- Battle Rifle Battle Cannon > --- INVENTORY (15) --- Light Ion Engine Arachnoskeleton Medium Storage Unit Structural Scanner Signal Interpreter ECM Suite Makeshift Light Armor Plating Makeshift Light Armor Plating Hacking Suite Battle Rifle Makeshift Shrapnel Gun Grenade Launcher Makeshift Spear Peak State ------------ > --- POWER ------------ Makeshift Power Source > --- PROPULSION ------- Light Treads Spiked Treads > --- UTILITY ---------- Large Storage Unit Makeshift Light Armor Plating > --- WEAPON ----------- Subdweller Beam Cannon Battle Rifle > --- INVENTORY -------- Light Ion Engine Arachnoskeleton Medium Storage Unit Structural Scanner Signal Interpreter ECM Suite Makeshift Light Armor Plating Makeshift Light Armor Plating Hacking Suite Subdweller Machine Gun Makeshift Shrapnel Gun Grenade Launcher Makeshift Spear [Rating: 20] Favorites ----------- Power Makeshift Power Source Engine Makeshift Power Source Propulsion Light Treads Treads Light Treads Utility Large Storage Unit Storage Large Storage Unit Protection Makeshift Light Armor Plating Weapon Assault Rifle Energy Cannon Subdweller Beam Cannon Ballistic Gun Assault Rifle Ballistic Cannon Battle Cannon Launcher Grenade Launcher Build | -11 -10 -10 -10 -8 ------- Run | Yrd Mat Min Sub Rec Slots Evolved . | . . . . . Power . | . . . . . Propulsion . | . . . . . Utility . | . . . . . Weapon . | . . . . . Parts Attached 26 | 7 7 . 12 . Power 4 | 2 . . 2 . Engine 4 | 2 . . 2 . Core . | . . . . . Reactor . | . . . . . Propulsion 4 | 2 . . 2 . Treads 4 | 2 . . 2 . Leg . | . . . . . Wheel . | . . . . . Hover . | . . . . . Flight . | . . . . . Utility 5 | 1 3 . 1 . Device . | . . . . . Storage 3 | 1 2 . . . Processor . | . . . . . Hackware . | . . . . . Protection 2 | . 1 . 1 . Artifact . | . . . . . Weapon 13 | 2 4 . 7 . Energy Gun . | . . . . . Energy Cannon 1 | . . . 1 . Ballistic Gun 9 | 2 3 . 4 . Ballistic Cannon 1 | . . . 1 . Launcher 2 | . 1 . 1 . Special Weapon . | . . . . . Impact Weapon . | . . . . . Slashing Weapon . | . . . . . Piercing Weapon . | . . . . . Special Melee Weapon . | . . . . . Unidentified Prototypes . | . . . . . Parts Lost 4 | . . . 2 2 Power 2 | . . . 1 1 Propulsion 1 | . . . . 1 Utility . | . . . . . Weapon 1 | . . . 1 . Highest Loss Streak 2 | . . . 1 2 To Critical Strikes . | . . . . . Average Slot Usage (%) 98 | . 92 100 99 92 Engine 13 | . 14 14 14 11 Treads 27 | . 28 28 28 23 Storage 14 | . 14 14 14 14 Protection 12 | . 7 14 14 14 Energy Cannon 5 | . . . 8 . Ballistic Gun 18 | . 27 28 14 14 Launcher 3 | . . . 5 . Naked Turns . | . . . . . Heaviest Build 40 | 13 32 32 40 33 Greatest Support 40 | 40 40 40 40 40 Greatest Overweight (x) . | . . . . . Average Overweight (x) . | . . . . . Largest Inventory Capacity 15 | 8 15 15 15 15 Average Capacity 13 | 6 10 15 15 15 Most Carried 15 | 5 12 12 15 15 Average Carried 11 | 1 7 12 13 15 Final Capacity 15 | 8 15 15 15 15 Final Carried 15 | 1 12 12 15 15 Class Distribution -------------------- 56% | Derelict-Mutant 43% | Mutant Dominant Class ---------------- Mutant | -10/Materials Mutant | -10/Mines Derelict-Mutant | -10/Subcaves Derelict-Mutant | -8/Recycling Resources | -11 -10 -10 -10 -8 ----------- Run | Yrd Mat Min Sub Rec Matter Collected 1033 | 229 296 157 349 2 Remotely . | . . . . . Salvage Created 974 | . 346 84 509 35 Parts 62 | . 31 4 26 1 Haulers Intercepted 2 | . 2 . . . Recyclers Shooed 1 | . 1 . . . Parts Field Recycled . | . . . . . Retrieved Matter . | . . . . . Parts Self-Destructed 12 | . . . 12 . Prevented . | . . . . . Kills | -11 -10 -10 -10 -8 ------- Run | Yrd Mat Min Sub Rec Combat Hostiles Destroyed 21 | . 6 2 12 1 Guns 7 | . 4 2 1 . Cannons 6 | . . . 5 1 AOE 8 | . 2 . 6 . Classes Destroyed 9 | . 7 . 1 1 Worker 1 | . 1 . . . Builder 3 | . 3 . . . Hauler 2 | . 2 . . . Operator 1 | . 1 . . . Watcher 2 | . 2 . . . Swarmer 3 | . 3 . . . Grunt 6 | . 3 2 1 . Sentry 1 | . . . . 1 Subdweller 11 | . . . 11 . Best Kill Streak 3 | . 3 2 2 1 Combat Bots Only 3 | . 3 2 2 1 Max Kills in Single Turn 2 | . 1 1 2 1 Gunslinging . | . . . . . Exploded 2 | . 1 . 2 . Melee . | . . . . . Uniques/NPCs Destroyed . | . . . . . Combat | -11 -10 -10 -10 -8 -------- Run | Yrd Mat Min Sub Rec Hostile Shots Fired 104 | . 36 16 26 26 Missed 30 | . 11 7 5 7 Damage Taken 1323 | . 288 121 639 275 Core 256 | . 17 22 157 60 Absorbed by Shields . | . . . . . Core Remaining (%) 100 | 100 . . . . Volleys Fired 128 | . 64 13 43 8 Largest 2 | . 2 2 2 2 Hottest 110 | . 50 40 110 64 Shots Fired 242 | . 128 26 72 16 Gun 200 | . 124 26 42 8 Cannon 30 | . . . 22 8 Launcher 12 | . 4 . 8 . Special . | . . . . . Kinetic 208 | . 124 26 42 16 Thermal 22 | . . . 22 . Explosive 12 | . 4 . 8 . Electromagnetic . | . . . . . Robot Hit Streak 12 | . 11 6 12 6 Robot Miss Streak 5 | . 5 3 2 2 Penetration Max . | . . . . . Secondary Targets 1 | . . 1 . . Max Gunslinging Chain 1 | . . 1 . . Shots Hit Robots 130 | . 70 18 31 11 Core Hits 48 | . 25 6 15 2 Critical Kills . | . . . . . Critical Parts Destroyed . | . . . . . Critical Strikes 1 | . . . . 1 Blast 1 | . . . . 1 Melee Attacks . | . . . . . Impact . | . . . . . Slashing . | . . . . . Piercing . | . . . . . Sneak Attacks . | . . . . . Combat Hostiles . | . . . . . Follow-up Attacks . | . . . . . Damage Inflicted 2278 | . 854 218 991 215 Guns 1260 | . 777 218 207 58 Cannons 571 | . . . 414 157 Explosions 447 | . 77 . 370 . Melee . | . . . . . Ramming . | . . . . . Kinetic 1417 | . 777 218 207 215 Thermal 414 | . . . 414 . Explosive 447 | . 77 . 370 . Electromagnetic . | . . . . . Impact . | . . . . . Slashing . | . . . . . Piercing . | . . . . . Highest Corruption . | . . . . . Average Corruption . | . . . . . Corruption Purged . | . . . . . Corruption Blocked . | . . . . . Overload Shots . | . . . . . Overflow Damage . | . . . . . Projectiles . | . . . . . Explosions . | . . . . . Melee . | . . . . . Knockbacks . | . . . . . Impact . | . . . . . Kinetic . | . . . . . Secondary . | . . . . . Self-Inflicted Damage 26 | . . . 26 . Shots 2 | . . . 2 . Rammed . | . . . . . Targets Rammed . | . . . . . Kicked . | . . . . . Crushed . | . . . . . Highest Temperature 183 | . 39 21 116 183 Average Temperature 45 | . 14 8 44 123 Received Heat Transfer 351 | . 135 69 66 81 Siege Activations . | . . . . . Robots Corrupted . | . . . . . Combat Hostiles . | . . . . . Parts Fried . | . . . . . Impact Corruptions . | . . . . . Robots Melted . | . . . . . Combat Hostiles . | . . . . . Parts Melted . | . . . . . Heat Transferred 555 | . . . 555 . Parts Sabotaged . | . . . . . Parts Stolen . | . . . . . Parts Stripped . | . . . . . Power Chain Reactions . | . . . . . Alert | -11 -10 -10 -10 -8 ------- Run | Yrd Mat Min Sub Rec Peak Influence 141 | . 141 66 . 21 Initial 16 | . . 16 . . Average 28 | . 29 39 . 3 Maximum Alert Level . | . . . . . Low Security (%) 100 | 100 100 100 . 100 Level 1 . | . . . . . Level 2 . | . . . . . Level 3 . | . . . . . Level 4 . | . . . . . Level 5 . | . . . . . High Security . | . . . . . Max Security . | . . . . . Squads Dispatched 1 | . 1 . . . Investigation . | . . . . . Extermination . | . . . . . Reinforcement 1 | . 1 . . . Assault . | . . . . . Garrison . | . . . . . Intercept . | . . . . . Searches Triggered . | . . . . . Construction Impeded . | . . . . . Haulers Reinforced . | . . . . . Active Scanning Responses . | . . . . . Cargo Convoy Interrupts . | . . . . . Stealth | -11 -10 -10 -10 -8 --------- Run | Yrd Mat Min Sub Rec Distress Signals . | . . . . . Communications Jammed . | . . . . . Distress Signals . | . . . . . Times Spotted 33 | . 18 2 11 2 Peak Tracking Total 2 | . 2 2 2 2 Tactical Retreats . | . . . . . Traps | -11 -10 -10 -10 -8 ------- Run | Yrd Mat Min Sub Rec Traps Triggered 3 | . . . 3 . Indirectly . | . . . . . Trap Hack Attempts . | . . . . . Triggered . | . . . . . Disarmed . | . . . . . Reprogrammed . | . . . . . Reused . | . . . . . Traps Extracted . | . . . . . Installed . | . . . . . Triggered . | . . . . . Machines | -11 -10 -10 -10 -8 ---------- Run | Yrd Mat Min Sub Rec Machines Disabled 3 | . 2 . 1 . Max in Single Turn 2 | . 2 . 1 . Machines Repaired . | . . . . . Machines Dismantled . | . . . . . Machines Sabotaged . | . . . . . Overloaded Fab Kills . | . . . . . Hacking | -11 -10 -10 -10 -8 --------- Run | Yrd Mat Min Sub Rec Machines Accessed 5 | . 2 . 2 1 Terminals 3 | . 2 . . 1 Fabricators . | . . . . . Repair Stations . | . . . . . Recycling Units . | . . . . . Scanalyzers . | . . . . . Garrison Access . | . . . . . Total Hacks 6 | . 3 . 2 1 Successful 5 | . 2 . 2 1 Failed 1 | . 1 . . . Catastrophic . | . . . . . Database Lockouts . | . . . . . Manual . | . . . . . Terminals 4 | . 3 . . 1 Fabricators . | . . . . . Repair Stations . | . . . . . Recycling Units . | . . . . . Scanalyzers . | . . . . . Garrison Access . | . . . . . Terminal Hacks 5 | . 2 . 2 1 Record 1 | . . . 1 . Prototype ID Bank 2 | . 1 . . 1 Branch Access Points 1 | . 1 . . . Derelict Proto ID Bank 1 | . . . 1 . Fabricator Hacks . | . . . . . Repair Station Hacks . | . . . . . Recycling Unit Hacks . | . . . . . Scanalyzer . | . . . . . Garrison Access Hacks . | . . . . . Unauthorized Hacks . | . . . . . Terminals . | . . . . . Fabricators . | . . . . . Repair Stations . | . . . . . Recycling Units . | . . . . . Scanalyzers . | . . . . . Garrison Access . | . . . . . Data Cores Recovered . | . . . . . Used . | . . . . . Hacking Detections 2 | . 1 . . 1 Full Trace Events . | . . . . . Feedback Events . | . . . . . Feedback Blocked . | . . . . . Robot Schematics Acquired . | . . . . . Robots Built . | . . . . . Authchips . | . . . . . Time . | . . . . . Total Robot Build Rating . | . . . . . Part Schematics Acquired . | . . . . . Parts Built . | . . . . . Authchips . | . . . . . Time . | . . . . . Total Part Build Rating . | . . . . . Parts Repaired . | . . . . . Time . | . . . . . Parts Recycled . | . . . . . Recycled Matter . | . . . . . Retrieved Matter . | . . . . . Retrieved Components . | . . . . . Parts Scanalyzed . | . . . . . Part Schematics Acquired . | . . . . . Parts Damaged . | . . . . . Bothacking | -11 -10 -10 -10 -8 ------------ Run | Yrd Mat Min Sub Rec Used RIF Installer . | . . . . . Robots Hacked . | . . . . . Non-combat . | . . . . . Combat . | . . . . . Robot Hacks Applied . | . . . . . Relay Couplers Released . | . . . . . Fabnet Peak Effective % . | . . . . . Robots Rewired . | . . . . . Allies Hacked . | . . . . . Hacks Repelled . | . . . . . Allies | -11 -10 -10 -10 -8 -------- Run | Yrd Mat Min Sub Rec Total Allies . | . . . . . Largest Group . | . . . . . Highest-Rated Group . | . . . . . Highest-Rated Ally . | . . . . . Total Orders . | . . . . . Ally Attacks . | . . . . . Total Damage . | . . . . . Kills . | . . . . . Allies Corrupted . | . . . . . Allies Melted . | . . . . . Intel | -11 -10 -10 -10 -8 ------- Run | Yrd Mat Min Sub Rec Robot Analysis Total . | . . . . . Derelict Logs Recovered 3 | . . . 3 . Drone Launches . | . . . . . Drone Recoveries . | . . . . . Exploration | -11 -10 -10 -10 -8 ------------- Run | Yrd Mat Min Sub Rec Turns Passed 4738 | 61 1192 215 3202 68 Spaces Moved 2678 | 38 603 111 1898 28 Core 12 | 12 . . . . Treads 2666 | 26 603 111 1898 28 Legs . | . . . . . Wheels . | . . . . . Hover . | . . . . . Flight . | . . . . . Fastest Speed 50 | 50 160 160 160 160 Average Speed 159 | 125 160 160 160 160 Slowest Speed 160 | 160 160 160 160 160 Overloaded Moves . | . . . . . Propulsion Burnouts . | . . . . . Robots Hopped . | . . . . . Cave-ins Triggered . | . . . . . Exploration Rate (%) 41 | 4 75 31 90 8 Regions Visited 4 Branch Regions 3 Pre-discovered Areas 2 | . . . 2 . Known Exits Taken 1 | . 1 . . . Unknown Exits Taken 3 | 1 . 1 1 . Scrap Searched 22 | . . 1 21 . Spaces Dug . | . . . . . Terrain Destroyed 52 | . 6 . 45 1 Melee . | . . . . . Projectile 2 | . . . 1 1 AOE 50 | . 6 . 44 . Terrain Rammed . | . . . . . Walls Destroyed . | . . . . . Machines Disabled . | . . . . . Actions | -11 -10 -10 -10 -8 --------- Run | Yrd Mat Min Sub Rec Total 2923 | 51 716 123 1997 36 Wait 15 | . 13 . 2 . Move 2674 | 37 602 110 1897 28 Hop . | . . . . . Pick Up 51 | 7 21 . 23 . Fast Attach . | . . . . . Attach 17 | 6 3 . 8 . Detach . | . . . . . Swap 9 | 1 4 . 4 . Drop 29 | . 9 . 20 . Fire 128 | . 64 13 43 8 Melee . | . . . . . Ram . | . . . . . Kick . | . . . . . Crush . | . . . . . Escape Stasis . | . . . . . Rewire . | . . . . . Trap . | . . . . . Miscellaneous . | . . . . . Route ------- -11/Scrapyard -10/Materials (discovered 4 exits: [*Mat x3] / *Min) -10/Mines -10/Subcaves (discovered 3 exits: [*Mat x2] / *Rec) -8/Recycling History --------- Turn | Location | Event 32 | -11/Scrapyard | Discovered new exit (range 16) 62 | -11/Scrapyard | Entered Materials 303 | -10/Materials | Build established: Mutant 318 | -10/Materials | Identified exit to Mines 483 | -10/Materials | Discovered new exit (range 15) 931 | -10/Materials | Discovered new exit (range 10) 1199 | -10/Materials | Discovered new exit (range 16) 1254 | -10/Materials | Entered Mines 1426 | -10/Mines | Assembled infested the area 1466 | -10/Mines | Discovered new exit (range 3) 1469 | -10/Mines | Entered Subcaves 1560 | -10/Subcaves | Discovered new exit (range 5) 1568 | -10/Subcaves | Learned Materials trap positions 1645 | -10/Subcaves | Learned location of Mines (-9) 1886 | -10/Subcaves | Discovered new exit (range 6) 2068 | -10/Subcaves | Visited Clippyterm 2357 | -10/Subcaves | Build established: Derelict-Mutant 2467 | -10/Subcaves | Shifting Twisted Machinery released Sub. Beam Cannon 2474 | -10/Subcaves | Shifting Twisted Machinery released Sub. Laser 2773 | -10/Subcaves | Disturbed a concealed Subdweller 2879 | -10/Subcaves | Discovered new exit (range 12) 3175 | -10/Subcaves | Shifting Twisted Machinery released Flamer 3178 | -10/Subcaves | Shifting Twisted Machinery released Mak. Shrapnel Gun 3423 | -10/Subcaves | Core integrity fell below 50% 4321 | -10/Subcaves | Learned location of Mines (-10) 4398 | -10/Subcaves | Visited 4L-MR0's lab 4420 | -10/Subcaves | Found Prototype Leg 4428 | -10/Subcaves | Identified Arachnoskeleton 4671 | -10/Subcaves | Entered Recycling 4725 | -8/Recycling | Core integrity fell below 20% 4739 | -8/Recycling | Destroyed by Y-45 Defender with Heavy Assault Rifle Last Messages --------------- 04641_ Dropped Sub. Machine Gun. 04643_ Acquired Battle Rifle. 04666_ Acquired 10 matter. A mysterious object appears at your location! LOCATION=UNKNOWN GOAL=ESCAPE 04687_ Connecting with Terminal... 04687_ Current location identified: Recycling >>Prototypes Downloading prototype IDs... Cld. Particle Cannon Enh. Autogun 04716_ Y-45 Defender springs to life. 04717_ Acquired 2 matter. 04717_ Y-45 Defender springs to life. 04718_ Lgt. Treads destroyed. 04721_ Mak. Power Source destroyed. 04728_ Y-45 Defender suffers critical hit (Blast). 04728_ Y-45 Defender destroyed. Map ----- +----------------------------------------------------+ | ???????????????????????????????????????????????? | | ???????????????????????????????????????????????? | | ???????????????????????????????????????????????? | | ???????????????????????????????????????????????? | | ???????????????????????????????????????????????? | | ???????????????????????????????????????????????? | | ???????????????????????????????????????????????? | | ???????????????????????????????????????????????? | | ???????????????????????????????????????????????? | | ???????????????????????????????????????????????? | | ???????????????????????????????????????????????? | | ???????????????????????????????????????????????? | | ???????????????????????????????????????????????? | | ???????????????????????????????????????????????? | | ??????????????????????????????###########??????? | | ??????????????????????????????# """ #??????? | | ??????????????????????????????# "T" #??????? | | ??????????????????????????????# """ #??????? | | ??????????????????????????????# """ #??????? | | ????????????????????#?????????# """ #??????? | | ????????????????????# ????????# """ #??????? | | ????????????????????# ???????# """ #??????? | | ????????????????#???# ??????# #??????? | | ?????????????##T#"Y"# ###########+######?????? | | ?????????? % #?????? | | ?????????? r r @ ! #?????? | | ?????????? Y r%= #?????? | | ?????????????##### #;###%########### ==###?????? | | ???????????????????????##??????????#===#???????? | | ???????????????????????????????????#####???????? | | ???????????????????????????????????????????????? | | ???????????????????????????????????????????????? | | ???????????????????????????????????????????????? | | | | | | | | | | | | | | | | | | | | | | | | | | | | | | | | | | | +----------------------------------------------------+ Best States ------------- Heat Dissipation 25 Energy Generation 15 Energy Capacity 250 Matter Stores 300 Matter Capacity 300 Sight Range 16 Terrain Scan Density 10 Armor Coverage 150 Evasion (%) 50 Recoil Reduction 2 Item Schematics ----------------- None Robot Schematics ------------------ None Fabricated ------------ Nothing Alien Tech Used ----------------- None Achievements -------------- None Challenges ------------ None Game ------ Seed LightFlightMount Manual? 0 Play Time 00:23:14 Cumulative 37.7 hours Start 2024.04.05 @ 00:20:06 End 2024.04.05 @ 00:42:28 Sessions 1 Manual Loads 0 Difficulty Rogue Special Mode None Game No. 52 Rogue 52 Adventurer 0 Explorer 0 Win Type - Total 1 Types 1/0/0/0/0/0/0/0/0 Lore% 21 Gallery% 27 Achievement% 27 Wizard Run 0 Options --------- Layout 1 ASCII 0 Keyboard 0 Movement Mouse Keybinds 0 Fullscreen 2 Font 32/Smallcaps Map View 50x40 Zoom Use 0% Tactical HUD 1 Map Filters NONE Filters NONE Steam 1 RUN: 5e16bd0f-a10f-41f7-ad08-df083c3e47cc